[Event "Chinese League Division-A 2024"]
[Site "Fuling Chongqing"]
[Date "2024.06.26"]
[Round "1.1"]
[White "Wan, Yunguo"]
[Black "Li, Chao b"]
[Result "1/2-1/2"]
[ECO "B52"]
[WhiteElo "2498"]
[BlackElo "2645"]
[Annotator "TA"]
[PlyCount "63"]
[EventDate "2024.06.28"]
[EventType "team-tourn"]
[EventCountry "CHN"]
[SourceTitle "playchess.com"]
[Source "ChessBase"]
[SourceQuality "1"]
[TimeControl "40/5400+30:1800+30"]

{[%evp 16,63,26,11,0,12,12,0,0,0,0,0,0,0,0,0,0,0,0,0,0,0,0,-1551,-862,-875,0,0,0,0,0,0,0,0,0,0,0,0,0,0,0,0,0,0,0,0,0,0,0,0]} 1. e4 {[%emt 0:00:08]} c5 {[%emt 0:00:35]} 2. Nf3 {[%emt 0:00:38]} d6 {[%emt 0:00:07]} 3. Bb5+ {[%emt 0:02:48]} Bd7 {[%emt 0:07:03]} 4. Bxd7+ {[%emt 0:02:55]} Qxd7 {[%emt 0:00:20]} 5. c4 {[%emt 0:02:16]} Nf6 {[%emt 0:00:13]} 6. Nc3 {[%emt 0:00:39]} g6 {[%emt 0:00:07]} 7. O-O {[%emt 0:03:29]} Bg7 {[%emt 0:02:10]} 8. d4 {[%emt 0:02:27]} cxd4 {[%emt 0:00:07]} 9. Nxd4 {[%emt 0:00:09]} O-O {[%emt 0:00:05]} 10. f3 {[%emt 0:07:54]} Rc8 {[%emt 0:01:06]} 11. b3 {[%emt 0:04:40]} d5 {[%emt 0:02:43]} 12. exd5 {[%emt 0:03:43]} Nxd5 {[%emt 0:00:10]} 13. Nxd5 {[%emt 0:01:46]} e6 {[%emt 0:00:06]} 14. Bh6 {[%emt 0:03:16] [#] Bxg7 is the strong threat.} exd5 {[%emt 0:00:08]} 15. Bxg7 {[%emt 0:00:16]} Kxg7 {[%emt 0:00:06]} 16. Nb5 {[%emt 0:04:50]} dxc4 {[%emt 0:00:15]} 17. Nd6 {[%emt 0:01:40]} (17. Qxd7 {simplifies} Nxd7 18. Nd6 Rc6 19. Nxc4 b5 20. Ne3) 17... Rd8 {[%emt 0:01:03]} (17... Rc6 {simplifies} 18. Nxc4 Re6 19. Qxd7 Nxd7 20. Rad1 Nf6) 18. Nxb7 {[%emt 0:02:07]} Qxd1 {[%emt 0:00:19]} 19. Rb1 $2 {[%emt 0:00:07][%mdl 8192]} (19. Rfxd1 $11 Rxd1+ 20. Rxd1) 19... Qxf1+ 20. Rxf1 {[%emt 0:00:30] [#]} Rd1 $2 {[%emt 0:00:34]} 21. Rxd1 $11 {[%emt 0:00:06] The position is equal.} cxb3 {[%emt 0:00:06]} 22. axb3 {[%emt 0:00:07][%mdl 4096] Endgame. KRN-KRN} Nc6 {[%emt 0:00:15] Prevents Rd8} 23. Rd6 {[%emt 0:00:45]} Rb8 {[%emt 0:00:22]} 24. Rxc6 {[%emt 0:00:19]} Rxb7 {[%emt 0:00:04] KR-KR} 25. Ra6 {[%emt 0:00:10]} Rxb3 {[%emt 0:00:07]} 26. Rxa7 {[%emt 0:00:05]} h5 {[%emt 0:00:17]} 27. h4 {[%emt 0:00:10]} Rb4 {[%emt 0:00:03]} 28. g3 {[%emt 0:00:06]} Rb1+ {[%emt 0:00:05]} 29. Kf2 {[%emt 0:00:04]} Rb2+ {[%emt 0:00:02]} 30. Kg1 {[%emt 0:00:07]} Rb1+ {[%emt 0:00:04]} 31. Kf2 {[%emt 0:00:05]} Rb2+ {[%emt 0:00:02]} 32. Kg1 {[%emt 0:00:06] Weighted Error Value: White=0.43/Black=0.60.  Loses game:     	White=1     	---        Inaccurate:     	---       	Black=1      OK:         	White=11    	Black=9      Best:        	White=1     	Black=2} 1/2-1/2

[Event "Chinese League Division-A 2024"]
[Site "Fuling Chongqing"]
[Date "2024.06.26"]
[Round "1.2"]
[White "Xiu, Deshun"]
[Black "Nie, Xinyang"]
[Result "1-0"]
[ECO "D37"]
[WhiteElo "2514"]
[BlackElo "2395"]
[Annotator "TA"]
[PlyCount "85"]
[EventDate "2024.06.28"]
[EventType "team-tourn"]
[EventCountry "CHN"]
[SourceTitle "playchess.com"]
[Source "ChessBase"]
[SourceQuality "1"]
[TimeControl "40/5400+30:1800+30"]

{[%evp 9,85,21,27,22,25,20,20,24,26,24,27,31,26,27,29,27,29,30,34,30,27,26,31,25,31,23,18,8,25,14,18,3,15,21,41,8,37,22,33,34,39,31,34,35,72,72,110,95,95,97,132,116,161,151,157,150,180,177,156,114,168,182,169,167,154,59,503,528,538,514,538,523,527,527,522,445,475,464]} 1. d4 {[%emt 0:00:03]} d5 {[%emt 0:00:20]} 2. c4 {[%emt 0:00:17]} e6 {[%emt 0:00:04]} 3. Nc3 {[%emt 0:02:30]} a6 {[%emt 0:00:04]} 4. cxd5 {[%emt 0:00:10]} exd5 {[%emt 0:00:03]} 5. Nf3 {[%emt 0:01:08]} Nf6 {[%emt 0:00:05]} 6. Bg5 {[%emt 0:01:12]} Be6 {[%emt 0:00:05]} 7. e3 {[%emt 0:00:28]} Nbd7 {[%emt 0:00:10]} 8. Bd3 {[%emt 0:00:16] The position is equal.} Bd6 {[%emt 0:00:05]} 9. O-O {[%emt 0:01:38]} c6 {[%emt 0:00:16]} 10. Bf4 {[%emt 0:01:27]} Qc7 {[%emt 0:00:27]} 11. Qd2 {[%emt 0:01:56]} O-O {[%emt 0:00:54]} 12. h3 {[%emt 0:00:47]} Rfe8 {[%emt 0:00:23]} 13. Rfe1 {[%emt 0:05:51]} Rac8 {[%emt 0:03:11]} 14. Rac1 {[%emt 0:03:01]} Qb8 {[%emt 0:05:32]} 15. Bb1 {[%emt 0:07:31]} Nf8 {[%emt 0:04:30]} 16. Bxd6 {[%emt 0:16:23]} Qxd6 {[%emt 0:00:04]} 17. Nh2 {[%emt 0:00:15]} Rcd8 {[%emt 0:06:44]} 18. f3 {[%emt 0:07:45]} Bc8 {[%emt 0:03:31]} 19. Rcd1 {[%emt 0:05:40]} Ne6 {[%emt 0:00:33]} 20. Ne2 {[%emt 0:00:10]} c5 {[%emt 0:00:56]} 21. dxc5 {[%emt 0:01:47]} Qxc5 {[%emt 0:00:09][%cal Od5d4]} 22. Nd4 {[%emt 0:04:16]} Qb6 {[%emt 0:07:10]} 23. Ng4 {[%emt 0:01:44]} Nxg4 {[%emt 0:03:00]} 24. hxg4 {[%emt 0:00:06]} Nf8 {[%emt 0:03:12]} 25. Rc1 {[%emt 0:02:44]} Ne6 {[%emt 0:01:37]} 26. Kf2 {[%emt 0:04:22]} Nxd4 {[%emt 0:04:43]} 27. Qxd4 {[%emt 0:00:20]} Qxd4 {[%emt 0:00:04]} 28. exd4 {[%emt 0:00:07]} Bd7 {[%emt 0:01:21]} 29. Rc7 {[%emt 0:11:33][%cal Oc7d7] Black must now prevent Rxd7!} Bb5 {[%emt 0:19:57]} 30. Rxb7 {[%emt 0:06:38] White is more active.} Kf8 {[%emt 0:00:04]} 31. Rh1 {[%emt 0:03:52]} (31. Bxh7 $2 {too greedy.} Rxe1 32. Kxe1 Re8+ 33. Kd2 g6 $19) 31... h6 {[%emt 0:02:54] [#]} 32. g5 $1 {[%emt 0:00:21][%mdl 512]} Rd6 {[%emt 0:00:55]} (32... Re2+ 33. Kg3) 33. Kg3 {[%emt 0:02:16]} Re2 {[%emt 0:00:36]} 34. b3 {[%emt 0:00:53]} Rd2 {[%emt 0:01:13]} (34... Rb2 $16 35. Rc7 Rc6) 35. a4 $18 {[%emt 0:01:39]} Bd7 {[%emt 0:01:26]} 36. gxh6 {[%emt 0:03:15]} gxh6 {[%emt 0:00:06][%cal Of8g7] [#]} 37. Rb8+ {[%emt 0:01:40]} (37. Rc1 $1 $16) 37... Kg7 $2 {[%emt 0:00:25][%mdl 8192] [#] This move loses the game for Black.} (37... Ke7 $1 $14) 38. Rd8 $1 {[%emt 0:00:41] White is clearly winning.} Rxd4 {[%emt 0:13:00]} 39. Bf5 {[%emt 0:00:04]} Rf6 {[%emt 0:00:44]} 40. Bxd7 {[%emt 0:00:00]} Rg6+ {[%emt 0:00:00]} 41. Kh2 {[%emt 0:02:52]} Rd6 {[%emt 0:00:38]} 42. Re1 {[%emt 0:02:14]} Rh4+ {[%emt 0:00:21]} 43. Kg3 {[%emt 0:02:02] Weighted Error Value: White=0.09 (flawless) /Black=0.28 (precise) .  Loses game:     	---       	Black=1      Mistake:       	White=1     	Black=1      Inaccurate:     	White=1     	Black=5      OK:         	White=17    	Black=9      Best:        	White=1     	---        Strong:       	White=1     	---} 1-0

[Event "Chinese League Division-A 2024"]
[Site "Fuling Chongqing"]
[Date "2024.06.26"]
[Round "1.3"]
[White "Peng, Xiongjian"]
[Black "Zhang, Di"]
[Result "0-1"]
[ECO "B51"]
[WhiteElo "2521"]
[BlackElo "2362"]
[Annotator "TA"]
[PlyCount "96"]
[EventDate "2024.06.28"]
[EventType "team-tourn"]
[EventCountry "CHN"]
[SourceTitle "playchess.com"]
[Source "ChessBase"]
[SourceQuality "1"]
[TimeControl "40/5400+30:1800+30"]

{[%evp 22,96,6,-8,-14,-10,-8,-27,0,-25,0,-13,-6,0,-5,-30,-27,-32,-45,-52,0,0,0,0,0,-14,0,-14,-9,-59,-54,-68,-60,-75,-81,-64,-35,-39,-23,-43,-16,-15,0,0,-2,-7,0,-489,-468,-535,-468,-635,-601,-611,-499,-724,-586,-649,-514,-754,-727,-693,-679,-910,-884,-850,-681,-769,-772,-914,-897,-1074,-1034,-1618,-1199,-29967,-6323]} 1. e4 {[%emt 0:00:06]} c5 {[%emt 0:00:09]} 2. Nc3 {[%emt 0:00:05]} Nc6 {[%emt 0:00:36]} 3. Nf3 {[%emt 0:00:10]} d6 {[%emt 0:02:05]} 4. Bb5 {[%emt 0:00:08]} e5 {[%emt 0:00:37]} 5. d3 {[%emt 0:00:08]} Nf6 {[%emt 0:00:48]} 6. a4 {[%emt 0:00:05] B51: Sicilian: Moscow Variation (3 Bb5+) without 3...Bd7.} Be7 {[%emt 0:00:17]} 7. O-O {[%emt 0:00:11]} O-O {[%emt 0:08:35]} 8. Bc4 {[%emt 0:00:14]} h6 {[%emt 0:06:21]} 9. Re1 {[%emt 0:01:07]} Be6 {[%emt 0:01:21]} 10. Nd2 $146 {[%emt 0:00:37]} ({Predecessor:} 10. Bd2 Qd7 11. h3 Bd8 12. Nh2 Nh7 13. Nf1 f5 14. exf5 Bxc4 15. dxc4 Qxf5 16. Ne4 {½-½ Sherwood,R (2416)-Jones,I (2409) WLS Inv10 email 2021}) 10... d5 {[%emt 0:10:24]} 11. exd5 {[%emt 0:00:13]} Nxd5 {[%emt 0:00:06]} 12. Bxd5 {[%emt 0:02:56]} Bxd5 {[%emt 0:00:09]} 13. Nc4 {[%emt 0:00:34]} f6 {[%emt 0:16:21]} 14. Be3 {[%emt 0:14:42]} f5 {[%emt 0:06:05]} 15. f3 {[%emt 0:12:12]} b6 {[%emt 0:03:49]} 16. Bf2 {[%emt 0:07:57]} Bf6 {[%emt 0:00:42]} 17. Nxd5 {[%emt 0:05:56]} Qxd5 {[%emt 0:00:08]} 18. a5 {[%emt 0:00:29]} b5 {[%emt 0:08:35]} 19. Ne3 {[%emt 0:00:29]} Qe6 {[%emt 0:01:37]} 20. c4 {[%emt 0:00:10]} bxc4 {[%emt 0:02:17]} (20... Nb4 $1 $15 21. Qb3 (21. cxb5 Rad8 $17) 21... Rad8) 21. Nxc4 $11 {[%emt 0:00:13]} Qd5 {[%emt 0:04:53]} 22. Ne3 {[%emt 0:00:11]} Qe6 {[%emt 0:00:57]} 23. Nc4 {[%emt 0:00:14]} Qd5 {[%emt 0:01:41]} 24. Rc1 {[%emt 0:08:12]} Rfd8 {[%emt 0:03:35]} 25. Ne3 {[%emt 0:01:00]} ({White should play} 25. Qa4 $11) 25... Qe6 $15 {[%emt 0:00:08]} (25... Qxd3 $6 26. Rxc5 Qxd1 27. Rxd1 Rxd1+ 28. Nxd1 $14) 26. Rxc5 {[%emt 0:03:41]} Nb4 {[%emt 0:01:08]} 27. Qa4 {[%emt 0:02:19]} Nxd3 {[%emt 0:00:25]} 28. Rc6 {[%emt 0:00:26]} Qf7 {[%emt 0:02:05]} 29. Re2 {[%emt 0:01:32]} Rd4 {[%emt 0:08:56]} 30. Qb5 {[%emt 0:00:55]} Nf4 {[%emt 0:04:44]} 31. Re1 {[%emt 0:05:13]} Qg6 {[%emt 0:00:37]} 32. Bg3 {[%emt 0:01:11]} Nd3 {[%emt 0:02:35]} 33. Nd5 $1 {[%emt 0:11:49]} Qe8 {[%emt 0:00:34]} (33... Nxe1 $2 34. Ne7+ Bxe7 35. Rxg6 $18) 34. Rd1 $2 {[%emt 0:05:27][%mdl 8192] [#]} (34. Nxf6+ $11 {and White stays safe.} gxf6 35. Qb3+ Qf7 36. Qxf7+ Kxf7 37. Rd1) 34... Rb8 $1 $19 {[%emt 0:00:34]} 35. Nc7 {[%emt 0:07:03]} (35. Nxf6+ gxf6 36. Qa6 Nb4 (36... Nxb2 $2 37. Rxd4 exd4 38. Bxb8 $18) 37. Rxd4 Nxa6) 35... Qf8 {[%emt 0:01:53]} (35... Nxb2 36. Rxd4 Rxb5 37. Nxe8 $15) 36. Qxd3 {[%emt 0:00:10]} ({And not} 36. Qa6 Nb4 (36... Nxb2 $2 37. Rxd4 exd4 38. Ne6 $18) 37. Rxd4 Nxa6) 36... Rxd3 {[%emt 0:00:09]} (36... Rxb2 $2 {loses.} 37. Qf1 Qd8 38. Rcc1 $18) 37. Rxd3 {[%emt 0:00:03]} e4 {[%emt 0:01:18]} 38. fxe4 {[%emt 0:04:20]} (38. Rd1 $142 Qb4 (38... Rxb2 $2 39. Nd5 $19) 39. Nd5 Bd4+ (39... Qxb2 40. Nxf6+ gxf6 41. Bxb8 $11) 40. Kh1) 38... fxe4 {[%emt 0:00:04]} 39. Rd1 {[%emt 0:00:06]} Rxb2 {[%emt 0:00:44]} 40. Nd5 {[%emt 0:00:00]} Bd4+ {[%emt 0:00:00]} 41. Kh1 {[%emt 0:02:25]} Rd2 {[%emt 0:02:21]} 42. Rb1 {[%emt 0:05:14]} Qf7 {[%emt 0:01:42]} 43. Nf4 {[%emt 0:00:48]} Qb7 {[%emt 0:01:19]} 44. Rcc1 {[%emt 0:00:52]} Rb2 {[%emt 0:00:29]} 45. Ra1 {[%emt 0:00:29]} e3 {[%emt 0:00:36]} 46. a6 {[%emt 0:00:29]} Qe4 {[%emt 0:00:24]} 47. h3 {[%emt 0:00:29]} e2 {[%emt 0:04:13]} 48. Ra4 {[%emt 0:05:41]} Qe3 {[%emt 0:00:41]} 0-1

[Event "Chinese League Division-A 2024"]
[Site "Fuling Chongqing"]
[Date "2024.06.26"]
[Round "1.4"]
[White "Li, Ruofan"]
[Black "Sun, Fanghui"]
[Result "1/2-1/2"]
[ECO "D73"]
[WhiteElo "2321"]
[BlackElo "2115"]
[Annotator "RC"]
[PlyCount "70"]
[EventDate "2024.06.28"]
[EventType "team-tourn"]
[EventCountry "CHN"]
[SourceTitle "playchess.com"]
[Source "ChessBase"]
[SourceQuality "1"]
[TimeControl "40/5400+30:1800+30"]

1. d4 {[%emt 0:00:04]} d5 {[%emt 0:00:05]} 2. Nf3 {[%emt 0:00:17]} Nf6 {[%emt 0:00:11]} 3. g3 {[%emt 0:00:49]} g6 {[%emt 0:01:06]} 4. Bg2 {[%emt 0:00:05]} c6 {[%emt 0:00:37]} 5. O-O {[%emt 0:00:16]} Bg7 {[%emt 0:00:05]} 6. c4 {[%emt 0:01:03]} dxc4 {[%emt 0:04:44]} 7. a4 {[%emt 0:00:20]} O-O {[%emt 0:00:43]} 8. Na3 {[%emt 0:00:03]} Be6 {[%emt 0:00:54]} 9. Ng5 {[%emt 0:01:17]} Bd5 {[%emt 0:00:04]} 10. e4 {[%emt 0:00:04]} h6 {[%emt 0:00:03]} 11. exd5 {[%emt 0:00:04]} hxg5 {[%emt 0:00:04]} 12. dxc6 {[%emt 0:00:05]} Nxc6 {[%emt 0:00:05]} 13. Nxc4 {[%emt 0:03:21]} Qxd4 {[%emt 0:13:33]} 14. Qb3 {[%emt 0:15:24]} Rac8 {[%emt 0:16:47]} 15. Bxg5 {[%emt 0:17:58]} Qg4 {[%emt 0:07:42]} 16. Be3 {[%emt 0:00:47]} Nd4 {[%emt 0:06:08]} 17. Bxd4 {[%emt 0:00:23]} Qxd4 {[%emt 0:00:05]} 18. Na5 {[%emt 0:02:17]} Qb6 {[%emt 0:07:01]} 19. Qxb6 {[%emt 0:10:44]} axb6 {[%emt 0:00:05]} 20. Nxb7 {[%emt 0:00:04]} Rc2 {[%emt 0:04:20]} 21. b4 {[%emt 0:02:35]} Ng4 {[%emt 0:04:01]} 22. Rad1 {[%emt 0:01:45]} Ra2 {[%emt 0:10:49]} 23. h3 {[%emt 0:21:50]} Ne5 {[%emt 0:01:28]} 24. f4 {[%emt 0:01:17]} Nc4 {[%emt 0:01:43]} 25. Bd5 {[%emt 0:00:04]} Rc2 {[%emt 0:00:04]} 26. Rc1 {[%emt 0:00:03]} Bd4+ {[%emt 0:01:35]} 27. Kh1 {[%emt 0:00:03]} Ne3 {[%emt 0:01:06]} 28. Rxc2 {[%emt 0:02:39]} Nxf1 {[%emt 0:03:08]} 29. g4 {[%emt 0:05:29]} Ne3 {[%emt 0:00:04]} 30. Rd2 {[%emt 0:00:09]} Bc3 {[%emt 0:00:04]} 31. Rd3 {[%emt 0:00:17]} Nxd5 {[%emt 0:00:14]} 32. Rxd5 {[%emt 0:00:01]} Bxb4 {[%emt 0:06:23]} 33. Rb5 {[%emt 0:01:54]} Bd2 {[%emt 0:00:05]} 34. Rxb6 {[%emt 0:00:51]} Ra8 {[%emt 0:01:35]} 35. a5 {[%emt 0:00:49]} Bxa5 {[%emt 0:00:12]} 1/2-1/2

[Event "Chinese League Division-A 2024"]
[Site "Fuling Chongqing"]
[Date "2024.06.26"]
[Round "1.5"]
[White "Zhang, Lanlin"]
[Black "Wang, Yu A."]
[Result "1/2-1/2"]
[ECO "C71"]
[WhiteElo "2161"]
[BlackElo "2234"]
[Annotator "RC"]
[PlyCount "62"]
[EventDate "2024.06.28"]
[EventType "team-tourn"]
[EventCountry "CHN"]
[SourceTitle "playchess.com"]
[Source "ChessBase"]
[SourceQuality "1"]
[TimeControl "40/5400+30:1800+30"]

1. e4 {[%emt 0:00:05]} e5 {[%emt 0:00:02]} 2. Nf3 {[%emt 0:00:05]} Nc6 {[%emt 0:00:01]} 3. Bb5 {[%emt 0:00:06]} a6 {[%emt 0:00:02]} 4. Ba4 {[%emt 0:00:05]} d6 {[%emt 0:00:02]} 5. d4 {[%emt 0:07:15]} Bd7 {[%emt 0:08:37]} 6. d5 {[%emt 0:01:58]} Nb8 {[%emt 0:05:40]} 7. Bb3 {[%emt 0:04:48]} g6 {[%emt 0:05:43]} 8. c4 {[%emt 0:05:22]} Bg7 {[%emt 0:01:24]} 9. Nc3 {[%emt 0:00:13]} Nf6 {[%emt 0:06:17]} 10. c5 {[%emt 0:09:14]} O-O {[%emt 0:09:20]} 11. cxd6 {[%emt 0:02:44]} cxd6 {[%emt 0:00:02]} 12. h3 {[%emt 0:03:12]} b5 {[%emt 0:03:54]} 13. Bc2 {[%emt 0:07:07]} a5 {[%emt 0:07:12]} 14. a3 {[%emt 0:08:18]} Na6 {[%emt 0:01:40]} 15. Be3 {[%emt 0:00:21]} b4 {[%emt 0:04:53]} 16. axb4 {[%emt 0:10:33]} Nxb4 {[%emt 0:02:22]} 17. Bb1 {[%emt 0:05:49]} Qc7 {[%emt 0:11:39]} 18. O-O {[%emt 0:04:48]} Rfb8 {[%emt 0:00:42]} 19. Qd2 {[%emt 0:06:14]} a4 {[%emt 0:10:26]} 20. Rc1 {[%emt 0:01:22]} Qb7 {[%emt 0:00:57]} 21. Ne1 {[%emt 0:04:00]} Nh5 {[%emt 0:02:24]} 22. Nd1 {[%emt 0:03:00]} Rc8 {[%emt 0:02:13]} 23. Rxc8+ {[%emt 0:01:51]} Rxc8 {[%emt 0:00:04]} 24. Nc3 {[%emt 0:01:02]} Ra8 {[%emt 0:03:30]} 25. Nd3 {[%emt 0:01:24]} Nxd3 {[%emt 0:03:14]} 26. Bxd3 {[%emt 0:00:05]} Nf4 {[%emt 0:00:11]} 27. Bf1 {[%emt 0:02:01]} Qb4 {[%emt 0:03:10]} 28. Nb5 {[%emt 0:04:29]} Qxd2 {[%emt 0:00:26]} 29. Bxd2 {[%emt 0:01:48]} Bxb5 {[%emt 0:00:17]} 30. Bxb5 {[%emt 0:00:10]} Rb8 {[%emt 0:00:01]} 31. Bxa4 {[%emt 0:00:28]} Rxb2 {[%emt 0:00:11]} 1/2-1/2

[Event "Chinese League Division-A 2024"]
[Site "Fuling Chongqing"]
[Date "2024.06.26"]
[Round "1.6"]
[White "Xu, Yi"]
[Black "Wang, Yue"]
[Result "1/2-1/2"]
[ECO "B22"]
[WhiteElo "2496"]
[BlackElo "2652"]
[Annotator "TA"]
[PlyCount "80"]
[EventDate "2024.06.28"]
[EventType "team-tourn"]
[EventCountry "CHN"]
[SourceTitle "playchess.com"]
[Source "ChessBase"]
[SourceQuality "1"]
[TimeControl "40/5400+30:1800+30"]

{[%evp 24,80,23,0,16,24,53,53,52,24,22,36,23,20,15,20,12,19,27,29,9,0,6,0,0,0,10,9,27,10,39,34,43,0,0,0,0,0,0,-58,11,12,13,14,24,14,25,16,16,16,38,7,61,48,71,86,68,68,97]} 1. e4 {[%emt 0:00:03]} c6 {[%emt 0:00:16]} 2. d4 {[%emt 0:00:06]} d5 {[%emt 0:00:07]} 3. exd5 {[%emt 0:00:03]} cxd5 {[%emt 0:00:08]} 4. c4 {[%emt 0:00:03]} Nf6 {[%emt 0:01:58]} 5. Nc3 {[%emt 0:00:07]} e6 {[%emt 0:00:49]} 6. Nf3 {[%emt 0:00:06]} Bb4 {[%emt 0:00:43]} 7. cxd5 {[%emt 0:00:21]} Nxd5 {[%emt 0:01:30]} 8. Bd2 {[%emt 0:00:05]} O-O {[%emt 0:02:25]} 9. Bd3 {[%emt 0:00:03]} Nf6 {[%emt 0:01:20]} 10. O-O {[%emt 0:01:26]} Be7 {[%emt 0:09:57]} 11. Bg5 {[%emt 0:14:36]} Nc6 {[%emt 0:03:19]} 12. Rc1 {[%emt 0:00:56]} h6 {[%emt 0:03:56]} 13. Bh4 {[%emt 0:01:26]} Qb6 {[%emt 0:13:02]} 14. Na4 {[%emt 0:19:09]} Qa5 {[%emt 0:00:50]} 15. a3 {[%emt 0:00:35]} Rd8 {[%emt 0:01:48]} 16. b4 {[%emt 0:01:05]} Qh5 {[%emt 0:03:47]} 17. Bg3 {[%emt 0:00:53]} e5 {[%emt 0:08:04] aiming for ...e4.} 18. dxe5 {[%emt 0:16:44]} ({Don't play} 18. Bxe5 Bg4 19. Re1 Bxf3 20. Qxf3 Qxf3 21. gxf3 Nxe5 22. Rxe5 Rxd4 $11) 18... Bf5 {[%emt 0:03:30]} 19. Nb2 {[%emt 0:01:50]} Bxd3 {[%emt 0:09:29]} 20. Nxd3 {[%emt 0:00:17]} Ne4 {[%emt 0:04:10]} 21. Qc2 {[%emt 0:21:50][%cal Oe5e6]} Ng5 {[%emt 0:07:54]} 22. Nxg5 {[%emt 0:05:26]} Bxg5 {[%emt 0:01:13]} 23. Qd1 {[%emt 0:01:16]} Qg6 {[%emt 0:04:15]} 24. Rc3 {[%emt 0:00:02]} Nd4 {[%emt 0:04:43] ...Nb5 would now be deadly.} 25. f4 {[%emt 0:01:58]} Be7 {[%emt 0:04:04]} (25... Nb5 $5 26. Rb3 $8 Nd4 $11) 26. Bf2 {[%emt 0:01:55]} (26. Nc1 $5) 26... Nb5 {[%emt 0:00:20]} 27. Rb3 {[%emt 0:00:05]} Qe4 {[%emt 0:01:38]} 28. Qf3 {[%emt 0:04:44]} (28. Bc5 {is interesting.} Bxc5+ 29. Nxc5 Qc4 30. Qc1) 28... Qxf3 {[%emt 0:00:18]} 29. gxf3 {[%emt 0:00:03]} Rac8 {[%emt 0:00:06]} 30. Bc5 {[%emt 0:01:55]} Kf8 {[%emt 0:02:59]} 31. Rc1 {[%emt 0:02:55]} (31. Be3 $11) 31... b6 {[%emt 0:02:46]} (31... Bxc5+ $1 $15 32. Rxc5 Nd4) 32. Be3 $11 {[%emt 0:00:27]} Rxc1+ {[%emt 0:02:11]} 33. Nxc1 {[%emt 0:00:03]} Rc8 {[%emt 0:00:14]} 34. Ne2 {[%emt 0:01:12]} Rc2 {[%emt 0:01:34]} 35. Nd4 {[%emt 0:00:42]} Nxd4 {[%emt 0:00:45]} 36. Bxd4 {[%emt 0:00:05]} Ke8 {[%emt 0:01:06]} 37. f5 {[%emt 0:02:00]} Rd2 {[%emt 0:00:11]} ({Black should try} 37... Bg5 $11) 38. Bf2 $1 $14 {[%emt 0:01:17]} Rd5 {[%emt 0:01:09]} 39. f4 {[%emt 0:00:23]} f6 {[%emt 0:00:25]} 40. Re3 {[%emt 0:00:00]} Kf7 {[%emt 0:00:00] Weighted Error Value: White=0.11 (very precise) /Black=0.13 (very precise) .  Mistake:       	White=1     	Black=2      Inaccurate:     	White=3     	Black=3      OK:         	White=10    	Black=12     Best:        	White=1     	---        Strong:       	White=1     	---} 1/2-1/2